bitfinex/quotes_BTCUSD_20220307
["timestamp","ask_amount","ask_price","bid_price","bid_amount"]
[1646620492087,1.1500438,38146.0,38139.0,0.36865986]
[1646620492281,0.18230831,38145.0,38139.0,0.36865986]
[1646620492482,0.01201581,38140.0,38139.0,0.36865986]
[1646620492881,0.01201581,38140.0,38139.0,0.31155986]
[1646620493330,0.15175321,38140.0,38139.0,0.31155986]
[1646620493531,0.1397374,38140.0,38139.0,0.31155986]
[1646620493730,0.2397374,38140.0,38139.0,0.31155986]
[1646620497086,0.1397374,38140.0,38139.0,0.31155986]
[1646620497986,0.1397374,38140.0,38139.0,0.11155986]
[1646620498389,0.1397374,38140.0,38139.0,8.903e-05]
[1646620498589,0.1397374,38140.0,38134.0,0.24885051]
[1646620498889,0.1131,38141.0,38134.0,0.2249994]
[1646620499090,0.1131,38141.0,38139.0,0.0009961]
[1646620499491,0.17491744,38140.0,38139.0,0.0009961]
[1646620499692,0.55878174,38140.0,38139.0,0.0009961]
[1646620499895,0.31465484,38140.0,38139.0,0.0009961]
[1646620500092,0.41465484,38140.0,38139.0,0.0009961]
[1646620500933,0.2397374,38140.0,38139.0,0.0009961]
[1646620501131,0.1,38140.0,38139.0,0.0009961]
[1646620501332,0.1,38141.0,38139.0,0.0009961]
[1646620502332,0.1397374,38140.0,38139.0,0.0009961]
[1646620502732,0.1549705,38140.0,38139.0,0.0009961]
[1646620502933,0.1397374,38140.0,38139.0,0.0009961]
[1646620503535,0.15161356,38140.0,38139.0,0.0009961]
[1646620503738,0.15161356,38140.0,38134.0,0.22599442]
[1646620503947,0.01187616,38140.0,38134.0,0.22599442]
[1646620504137,0.1,38141.0,38136.0,0.07381765]
[1646620504387,0.11598852,38143.0,38137.0,0.3]
[1646620504586,0.01598852,38143.0,38137.0,0.3]
[1646620505091,0.01598852,38143.0,38142.0,0.06705984]
[1646620505297,0.835,38154.0,38150.0,0.19983416]
[1646620505485,0.5,38154.0,38150.0,0.19983416]
[1646620506090,0.0131,38155.0,38150.0,0.19983416]
[1646620506690,0.0131,38155.0,38151.0,0.3]
[1646620506887,0.2,38160.0,38151.0,0.3]
[1646620506888,0.0131,38158.0,38151.0,0.3]
[1646620507189,0.00020266,38156.0,38155.0,0.05600421]
[1646620507388,0.00020266,38156.0,38151.0,0.3]
[1646620507591,0.00020266,38156.0,38152.0,0.20832177]
[1646620507788,0.00020266,38156.0,38153.0,0.3]
[1646620508030,0.2,38160.0,38153.0,0.3]
[1646620508236,0.36714448,38163.0,38159.0,0.18632858]
[1646620508434,0.41581049,38164.0,38162.0,0.06067669]
[1646620508632,0.41581049,38164.0,38163.0,0.3]
[1646620508831,0.41581049,38164.0,38161.0,0.29115176]
[1646620509033,0.41581049,38164.0,38162.0,0.3]
[1646620509234,0.415,38164.0,38162.0,0.3]
[1646620509432,0.415,38164.0,38161.0,0.29115176]
[1646620509433,0.41520266,38164.0,38161.0,0.29115176]
[1646620509631,0.41520266,38164.0,38162.0,0.3]
[1646620510034,0.41520266,38164.0,38161.0,0.29115176]
[1646620510235,0.41520266,38164.0,38162.0,0.3]
[1646620510434,0.415,38164.0,38162.0,0.3]
[1646620510832,0.41520266,38164.0,38162.0,0.3]
[1646620511435,0.41520266,38164.0,38159.0,0.18632858]
[1646620511636,0.415,38164.0,38159.0,0.18632858]
[1646620511881,0.415,38164.0,38152.0,0.3]
[1646620512084,0.415,38164.0,38148.0,0.3]
[1646620512481,0.26835326,38162.0,38152.0,0.23787864]
[1646620512783,0.26835326,38162.0,38153.0,0.37444604]
[1646620512981,0.415,38164.0,38153.0,0.40057604]
[1646620513180,0.00020266,38159.0,38153.0,0.40057604]
[1646620513481,0.01800975,38159.0,38153.0,0.40057604]
[1646620513682,0.01623133,38158.0,38157.0,0.16057772]
[1646620513888,0.00020266,38159.0,38157.0,0.46057772]
[1646620514083,0.415,38164.0,38158.0,0.57403572]
[1646620514283,0.415,38164.0,38163.0,0.20586381]
[1646620517334,0.415,38164.0,38163.0,0.57805103]
[1646620517536,0.415,38164.0,38163.0,0.60418103]
[1646620517734,0.415,38164.0,38163.0,0.30418103]
[1646620517940,0.415,38164.0,38163.0,0.57805103]
[1646620518140,0.0008105,38171.0,38164.0,1.76882141]
[1646620518337,0.184114,38173.0,38168.0,1.15]
[1646620518338,0.0869245,38173.0,38168.0,1.15]
[1646620518535,0.0869245,38173.0,38170.0,0.25616246]
[1646620518736,0.0869245,38173.0,38171.0,0.3525]
[1646620518935,0.0869245,38173.0,38172.0,0.32613]
[1646620519387,0.12,38185.0,38178.0,0.0595583]
[1646620519788,0.12,38185.0,38173.0,1.15]
[1646620519990,0.27815786,38181.0,38173.0,1.15]
[1646620520193,0.27815786,38181.0,38174.0,0.3]
[1646620520393,0.27815786,38181.0,38173.0,0.3]
[1646620520793,0.21627353,38178.0,38172.0,0.16670009]
[1646620520992,0.1,38183.0,38173.0,0.3]
[1646620521194,0.1,38183.0,38166.0,0.02613]
[1646620521195,0.01308,38182.0,38166.0,0.32613]
[1646620521597,0.22,38185.0,38166.0,0.3]
[1646620521598,0.11308,38184.0,38166.0,0.3]
[1646620521798,0.00020265,38180.0,38161.0,0.0525]
[1646620521995,0.1868431,38172.0,38169.0,0.19015142]
[1646620522195,0.1868431,38172.0,38167.0,0.28976111]
[1646620522394,0.2368431,38172.0,38167.0,0.28976111]
[1646620523043,0.2368431,38172.0,38163.0,0.16266654]
[1646620523249,0.2368431,38172.0,38164.0,0.3]
[1646620524043,0.01753614,38171.0,38164.0,0.56550097]
[1646620524245,0.01469874,38170.0,38165.0,0.05315428]
[1646620524442,0.01515123,38169.0,38166.0,0.3]
[1646620524643,0.01534742,38168.0,38166.0,0.3]
[1646620524843,0.01649949,38167.0,38166.0,0.3]
[1646620525044,0.28556701,38172.0,38166.0,0.3]
[1646620525243,0.28556701,38172.0,38160.0,0.50456311]
[1646620525244,0.21247685,38171.0,38160.0,0.50456311]
[1646620525651,0.21247685,38171.0,38166.0,0.22393331]
[1646620526052,0.33556701,38172.0,38166.0,0.06609497]
[1646620526983,0.33556701,38172.0,38166.0,0.28121206]
[1646620527186,0.33556701,38172.0,38163.0,0.3]
[1646620527384,0.05,38172.0,38163.0,0.3]
[1646620527582,0.01441214,38173.0,38163.0,0.3]
[1646620527782,0.01247603,38173.0,38163.0,0.3]
[1646620527983,0.01599938,38173.0,38163.0,0.3]
[1646620528183,0.01084772,38173.0,38165.0,0.22456224]
[1646620528385,0.00020098,38173.0,38165.0,0.22456224]
[1646620528584,0.01434871,38173.0,38167.0,0.00108643]
[1646620528786,0.06434871,38173.0,38167.0,0.00108643]
[1646620528988,0.06454969,38173.0,38167.0,0.00108643]
[1646620529183,0.19911685,38170.0,38167.0,0.00108643]
[1646620529583,0.24911685,38170.0,38167.0,0.00108643]
[1646620530192,0.19660988,38169.0,38167.0,0.00108643]
[1646620530386,0.01145989,38168.0,38167.0,0.00108643]
[1646620530637,0.06395989,38168.0,38167.0,0.00108643]
[1646620530835,0.27705989,38168.0,38167.0,0.00108643]
[1646620531043,0.65202817,38168.0,38167.0,8.643e-05]
[1646620531234,0.21338159,38156.0,38152.0,0.3]
[1646620531438,0.21338159,38156.0,38151.0,0.24398579]
[1646620531635,0.21338159,38156.0,38151.0,0.42534393]
[1646620531636,0.05,38156.0,38151.0,0.42534393]
[1646620531836,0.1525,38161.0,38160.0,0.003169]
[1646620532035,0.36796284,38161.0,38160.0,0.003169]
[1646620532836,0.55553392,38161.0,38160.0,0.003169]
[1646620536077,0.85553392,38161.0,38160.0,0.003169]
[1646620536477,1.15,38160.0,38159.0,6.369e-05]
[1646620536677,1.15,38160.0,38143.0,0.44474977]
[1646620536678,0.02613,38159.0,38143.0,0.04607703]
[1646620536877,0.02613,38157.0,38143.0,0.04607703]
[1646620537078,0.09173,38156.0,38143.0,0.04607703]
[1646620537279,0.15,38154.0,38143.0,0.04607703]
[1646620537480,0.1,38152.0,38143.0,0.04607703]
[1646620537782,0.27298941,38149.0,38143.0,0.04607703]
[1646620538033,0.25132483,38150.0,38149.0,0.29631201]
[1646620538236,0.25132483,38150.0,38143.0,0.04607703]
[1646620538237,1.15,38149.0,38143.0,0.03297703]
[1646620538436,0.1397374,38145.0,38143.0,0.03297703]
[1646620538635,0.1922374,38144.0,38143.0,0.03297703]
[1646620538837,0.27159263,38144.0,38143.0,0.03297703]
[1646620539035,0.667318,38144.0,38143.0,0.03297703]
[1646620539234,0.85234649,38144.0,38143.0,0.03297703]
[1646620539435,0.96973254,38144.0,38143.0,0.03297703]
[1646620539636,0.96786692,38144.0,38143.0,0.03297703]
[1646620539834,0.96786692,38144.0,38131.0,0.17839112]
[1646620539835,0.85,38143.0,38131.0,0.17839112]
[1646620540034,0.85,38143.0,38134.0,0.18777644]
[1646620540035,0.0525,38142.0,38134.0,0.18777644]
[1646620540238,0.1397374,38138.0,38134.0,0.18777644]
[1646620540435,0.1397374,38135.0,38134.0,0.18777644]
[1646620540639,0.1922374,38135.0,38134.0,0.18777644]
[1646620540837,0.2422374,38135.0,38134.0,0.18777644]
[1646620542096,0.2553474,38135.0,38134.0,0.18777644]
[1646620542292,0.2422374,38135.0,38134.0,0.18777644]
[1646620543393,0.1025,38135.0,38134.0,0.18777644]
[1646620543792,0.0525,38135.0,38134.0,0.54283197]
[1646620543998,0.0525,38135.0,38134.0,0.84283197]
[1646620543999,0.1025,38135.0,38134.0,0.84283197]
[1646620544194,0.0525,38135.0,38134.0,0.84283197]
[1646620544394,0.05,38140.0,38134.0,1.00638069]
[1646620544594,0.05,38142.0,38134.0,1.00638069]
[1646620544794,0.20317848,38146.0,38134.0,1.00638069]
[1646620544994,0.20317848,38146.0,38139.0,0.22232901]
[1646620544995,0.05,38145.0,38139.0,0.22232901]
[1646620545194,0.01773838,38144.0,38140.0,0.3592957]
[1646620545397,0.0131783,38143.0,38140.0,0.6592957]
[1646620545632,0.01323156,38142.0,38140.0,0.6592957]
[1646620545831,0.0131,38151.0,38141.0,0.3]
[1646620546032,0.18681944,38149.0,38141.0,0.3]
[1646620546232,0.0131,38148.0,38141.0,0.3]
[1646620546734,0.0131,38148.0,38140.0,0.6592957]
[1646620547132,0.0131,38148.0,38143.0,6.372e-05]
[1646620548032,0.0131,38148.0,38140.0,0.6592957]
[1646620548236,0.0131,38148.0,38144.0,6.372e-05]
[1646620548632,0.0131,38148.0,38140.0,0.27506372]
[1646620548834,0.0131,38148.0,38139.0,0.22232901]
[1646620549048,0.16719422,38143.0,38134.0,0.18777644]
[1646620549286,0.21719422,38143.0,38134.0,0.18777644]
[1646620549695,0.21719422,38143.0,38136.0,0.05442818]
[1646620549891,0.1,38149.0,38148.0,0.001]
[1646620549892,0.095,38149.0,38148.0,0.001]
[1646620550286,0.0131,38150.0,38148.0,0.001]
[1646620550586,0.0131,38150.0,38149.0,0.2]
[1646620550786,0.2528374,38150.0,38149.0,0.2]
[1646620551084,0.0131,38150.0,38149.0,0.2]
[1646620551485,0.1,38151.0,38149.0,0.2]
[1646620551891,0.0131,38152.0,38149.0,0.2]
[1646620552087,0.1,38153.0,38151.0,0.2]
[1646620552288,0.1,38153.0,38151.0,0.16]
[1646620552489,0.10640809,38158.0,38151.0,0.16]
[1646620552690,0.10640809,38158.0,38156.0,0.16]
[1646620552691,0.0131,38157.0,38156.0,0.16]
[1646620552888,0.30597768,38157.0,38156.0,0.16]
[1646620553331,0.40597768,38157.0,38156.0,0.16]
[1646620554332,0.22401281,38157.0,38156.0,0.16]
[1646620555935,0.12401281,38157.0,38155.0,0.16]
[1646620556135,0.1397374,38156.0,38155.0,0.16]
[1646620556335,0.2528374,38156.0,38155.0,0.16]
[1646620557383,0.1528374,38156.0,38155.0,0.16]
[1646620558383,0.1397374,38156.0,38155.0,0.16]
[1646620559482,0.1397374,38156.0,38149.0,0.16006415]
[1646620559684,0.17447675,38150.0,38149.0,0.16006415]
[1646620559887,0.22697675,38150.0,38149.0,6.415e-05]
[1646620560083,0.46671415,38150.0,38148.0,0.001]
[1646620560384,0.3397374,38149.0,38148.0,0.00106415]
[1646620560633,0.3922374,38149.0,38148.0,0.00106415]
[1646620560831,0.4053374,38149.0,38148.0,0.00106415]
[1646620561232,0.4158364,38149.0,38148.0,0.001]
[1646620561433,0.276099,38149.0,38148.0,0.001]
[1646620561632,0.36799921,38149.0,38148.0,0.001]
[1646620562033,0.36799921,38149.0,38148.0,0.161]
[1646620562234,0.36799921,38149.0,38148.0,0.001]
[1646620562437,0.36799921,38149.0,38148.0,0.161]
[1646620562754,0.36799921,38149.0,38148.0,0.1616]
[1646620562931,0.26799921,38149.0,38148.0,0.1616]
[1646620563133,0.2525,38149.0,38148.0,0.0016]
[1646620564379,0.1,38149.0,38148.0,0.0016]
[1646620568931,0.11324727,38153.0,38148.0,0.0016]
[1646620569132,0.11324727,38153.0,38149.0,0.16]
[1646620569335,0.110498,38153.0,38149.0,0.16]
[1646620569635,0.0131,38155.0,38151.0,0.16]
[1646620569832,0.02962453,38156.0,38154.0,0.16]
[1646620570039,0.10851167,38155.0,38154.0,0.1469]
[1646620570236,0.10851167,38155.0,38154.0,0.30599125]
[1646620570434,0.10851167,38155.0,38154.0,0.1469]
[1646620577846,0.10851167,38155.0,38149.0,6.473e-05]
[1646620578049,0.4,38155.0,38149.0,6.473e-05]
[1646620578248,0.4,38155.0,38148.0,0.1485]
[1646620578249,0.1,38153.0,38148.0,0.1485]
[1646620578545,0.2087132,38152.0,38149.0,6.473e-05]
[1646620578749,0.3,38151.0,38149.0,6.473e-05]
[1646620578948,0.3525,38151.0,38149.0,6.473e-05]
[1646620579148,0.5131,38150.0,38149.0,6.473e-05]
[1646620579386,0.5131,38150.0,38148.0,0.0016]
[1646620579387,0.6656,38150.0,38148.0,0.0016]
[1646620579685,0.3,38149.0,38148.0,0.0016]
[1646620579884,0.3525,38149.0,38148.0,0.00166473]
[1646620580485,0.4922374,38149.0,38148.0,0.00166473]
[1646620580685,0.4922374,38149.0,38148.0,0.0016]
[1646620580886,0.5027374,38149.0,38148.0,0.0016]
[1646620581285,0.4922374,38149.0,38148.0,0.0016]
[1646620581988,0.5053374,38149.0,38148.0,0.0016]
[1646620582586,0.8053374,38149.0,38148.0,0.0016]
[1646620583033,0.5053374,38149.0,38148.0,0.0016]
[1646620583234,1.15,38148.0,38143.0,0.001]
[1646620583435,0.11551437,38144.0,38143.0,0.001]
[1646620583636,0.36801437,38144.0,38143.0,0.001]
[1646620583833,0.48111437,38144.0,38143.0,0.001]
[1646620584034,0.38111437,38144.0,38143.0,0.001]
[1646620584238,0.48111437,38144.0,38143.0,0.001]
[1646620584934,0.49161537,38144.0,38143.0,0.001]
[1646620585739,0.49161537,38144.0,38139.0,0.001]
[1646620585740,0.78111437,38144.0,38139.0,0.001]
[1646620585944,0.78111437,38144.0,38137.0,0.002]
[1646620585945,0.1397374,38140.0,38137.0,0.002]
[1646620586141,0.1397374,38138.0,38137.0,0.002]
[1646620586339,0.4053474,38138.0,38137.0,0.002]
[1646620586540,0.4053474,38138.0,38134.0,0.18777644]
[1646620586541,0.37419231,38138.0,38134.0,0.18777644]
[1646620586785,0.10858231,38136.0,38134.0,0.18777644]
[1646620586984,0.36108231,38136.0,38134.0,0.18777644]
[1646620587184,0.46108231,38136.0,38134.0,0.18777644]
[1646620587786,0.46108231,38136.0,38130.0,0.001]
[1646620587787,1.15,38134.0,38130.0,0.001]
[1646620587987,0.11556898,38131.0,38130.0,0.001]
[1646620588187,0.18117898,38131.0,38130.0,0.001]
[1646620588385,0.38060114,38131.0,38130.0,0.001]
[1646620588783,0.39110614,38131.0,38130.0,0.001]
[1646620588983,0.38060114,38131.0,38130.0,0.001]
[1646620589385,0.45190114,38131.0,38130.0,0.001]
[1646620589584,0.46501114,38131.0,38130.0,0.001]
[1646620589783,0.45190114,38131.0,38130.0,0.001]
[1646620590386,0.13717265,38131.0,38130.0,0.001]
[1646620590642,0.03717265,38131.0,38130.0,0.001]
[1646620591537,0.03717265,38131.0,38130.0,0.301]
[1646620591740,0.03717265,38131.0,38130.0,0.001]
[1646620591936,0.03717265,38131.0,38127.0,0.303]
[1646620591937,1.15,38130.0,38127.0,0.003]
[1646620592140,1.15,38130.0,38127.0,0.0001]
[1646620592141,0.1397374,38128.0,38127.0,0.0001]
[1646620592338,0.1397374,38128.0,38115.0,0.002]
[1646620592339,0.7897374,38128.0,38115.0,0.002]
[1646620592538,0.1397374,38124.0,38115.0,0.002]
[1646620592739,0.10912625,38122.0,38115.0,0.002]
[1646620592938,0.10912625,38122.0,38114.0,0.002]
[1646620592939,0.27244075,38118.0,38114.0,0.002]
[1646620593144,0.1397374,38115.0,38114.0,0.002]
[1646620593340,0.2098674,38115.0,38114.0,0.002]
[1646620593540,0.4623674,38115.0,38114.0,0.002]
[1646620593740,0.5754774,38115.0,38114.0,0.002]
[1646620594588,0.8754774,38115.0,38114.0,0.002]
[1646620594790,0.8623674,38115.0,38108.0,0.002]
[1646620594989,0.1397374,38112.0,38108.0,0.002]
[1646620595192,0.4922374,38112.0,38108.0,0.002]
[1646620595390,0.6922374,38112.0,38108.0,0.002]
[1646620595590,0.7922374,38112.0,38110.0,0.00306427]
[1646620595793,0.76812365,38112.0,38110.0,0.00306427]
[1646620596089,0.75582753,38112.0,38110.0,0.00306427]
[1646620596490,0.76633753,38112.0,38110.0,0.00306427]
[1646620596688,0.76633753,38112.0,38110.0,0.003]
[1646620596904,0.46812365,38112.0,38110.0,0.00306427]
[1646620597691,0.76812365,38112.0,38110.0,0.00306427]
[1646620597891,0.76812365,38112.0,38110.0,0.003]
[1646620598135,0.76812365,38112.0,38110.0,0.00306427]
[1646620598538,0.46812365,38112.0,38110.0,0.00306427]
[1646620599031,0.46812365,38112.0,38110.0,0.003]
[1646620599232,0.46812365,38112.0,38110.0,0.00306427]
[1646620599735,0.47863365,38112.0,38110.0,0.00306427]
[1646620600135,0.47863365,38112.0,38110.0,0.003]
[1646620600136,0.46812365,38112.0,38110.0,0.003]
[1646620600537,0.96812365,38112.0,38110.0,0.003]
[1646620601039,0.66812365,38112.0,38110.0,0.003]
[1646620601237,0.66071891,38112.0,38110.0,0.003]
[1646620601436,0.16071891,38112.0,38110.0,0.003]
[1646620601637,0.1606919,38112.0,38110.0,0.003]
[1646620602585,0.2606919,38112.0,38110.0,0.003]
[1646620603196,0.2712019,38112.0,38110.0,0.003]
[1646620603391,0.2606919,38112.0,38110.0,0.003]
[1646620603788,0.3606919,38112.0,38110.0,0.003]
[1646620603987,0.2606919,38112.0,38110.0,0.003]
[1646620604391,0.3606919,38112.0,38110.0,0.0768772]
[1646620604587,0.3606919,38112.0,38110.0,0.003]
[1646620605736,0.3081919,38112.0,38111.0,0.07317601]
[1646620605940,0.1,38116.0,38112.0,0.46966543]
[1646620606139,0.1,38115.0,38114.0,0.20793209]
[1646620606337,0.1,38115.0,38114.0,0.37281596]
[1646620606538,0.1,38119.0,38114.0,0.37281596]
[1646620606941,0.1,38120.0,38114.0,0.37281596]
[1646620607536,0.1,38120.0,38114.0,0.51971596]
[1646620607742,0.1,38123.0,38114.0,0.51971596]
[1646620607743,0.1,38121.0,38114.0,0.51971596]
[1646620607937,0.1,38121.0,38118.0,0.1469]
[1646620608138,0.1,38126.0,38123.0,0.06799117]
[1646620608337,0.00640809,38130.0,38123.0,0.06799117]
[1646620608338,0.11659028,38124.0,38123.0,0.06799117]
[1646620608940,0.11658875,38124.0,38120.0,0.18767983]
[1646620609137,0.1,38127.0,38118.0,0.1469]
[1646620609788,0.1,38127.0,38117.0,0.1469]
[1646620610189,0.1,38127.0,38117.0,0.39315741]
[1646620610489,0.1,38127.0,38122.0,0.06066094]
[1646620610789,0.110505,38127.0,38122.0,0.06066094]
[1646620610991,0.17146514,38124.0,38114.0,0.16488387]
[1646620611394,0.27146514,38124.0,38117.0,0.1469]
[1646620611591,0.1,38118.0,38114.0,0.16488387]
[1646620612192,0.1,38122.0,38114.0,0.16488387]
[1646620612394,0.1,38122.0,38118.0,0.07116245]
[1646620613040,0.1,38121.0,38118.0,0.07116245]
[1646620613441,0.1,38122.0,38114.0,0.16488387]
[1646620613846,0.1,38121.0,38114.0,0.16488387]
[1646620614841,0.110507,38121.0,38114.0,0.16488387]
[1646620615044,0.110507,38121.0,38115.0,0.06598442]
[1646620615045,0.1,38121.0,38115.0,0.06598442]
[1646620615343,0.1,38121.0,38115.0,0.22794019]
[1646620615944,0.1,38121.0,38117.0,0.26648404]
[1646620616143,0.2,38122.0,38121.0,0.05993359]
[1646620616347,0.20026269,38122.0,38117.0,0.26648404]
[1646620616545,0.2,38122.0,38117.0,0.26648404]
[1646620616988,0.1,38124.0,38117.0,0.26648404]
[1646620617190,0.01311,38123.0,38117.0,0.26648404]
[1646620617392,0.2,38126.0,38113.0,0.02613]
[1646620617393,0.1,38125.0,38113.0,0.02613]
[1646620617589,0.1,38125.0,38111.0,0.002]
[1646620617590,0.36633,38124.0,38111.0,0.002]
[1646620617789,0.1,38119.0,38111.0,0.002]
[1646620617986,0.1,38114.0,38111.0,0.002]
[1646620618186,0.1,38115.0,38111.0,0.002]
[1646620618586,0.1,38115.0,38112.0,0.67320658]
[1646620618787,0.1,38117.0,38112.0,0.67320658]
[1646620619092,0.1,38117.0,38114.0,0.07104985]
[1646620619286,0.1,38119.0,38114.0,0.07104985]
[1646620619888,0.1,38120.0,38114.0,0.07104985]
[1646620620290,0.01311,38121.0,38114.0,0.07104985]
[1646620620534,0.01311,38122.0,38121.0,0.07433051]
[1646620620740,0.01337269,38122.0,38121.0,0.07433051]
[1646620621137,0.11337269,38122.0,38121.0,0.07433051]
[1646620622539,0.11337269,38122.0,38118.0,0.15548594]
[1646620622739,0.123616,38122.0,38118.0,0.15548594]
[1646620622939,0.1,38120.0,38118.0,0.15548594]
[1646620623140,0.1,38120.0,38112.0,0.46966543]
[1646620623541,0.1,38120.0,38114.0,0.27647351]
[1646620623742,0.1,38120.0,38115.0,0.06686325]
[1646620624734,0.1397374,38116.0,38112.0,0.46966543]
[1646620624892,0.1,38120.0,38112.0,0.46966543]
[1646620624893,0.1397374,38113.0,38112.0,0.46966543]
[1646620626390,0.1397374,38113.0,38112.0,0.4696004]
[1646620626590,0.1397374,38113.0,38112.0,0.52230753]
[1646620627491,0.1,38114.0,38112.0,0.52230753]
[1646620627891,0.1397374,38113.0,38112.0,0.52230753]
[1646620628139,0.1397374,38113.0,38112.0,0.4696004]
[1646620628140,0.15578264,38113.0,38112.0,0.4696004]
[1646620629539,0.15578264,38113.0,38112.0,0.53013355]
[1646620631142,0.11558264,38113.0,38112.0,0.53013355]
[1646620631909,0.01311,38120.0,38113.0,0.85]
[1646620632093,0.1,38123.0,38116.0,0.21686339]
[1646620632290,0.11311,38124.0,38120.0,0.21706849]
[1646620632492,0.02415476,38121.0,38120.0,0.28343882]
[1646620632691,0.02415476,38121.0,38120.0,0.06637033]
[1646620633894,0.04267347,38124.0,38122.0,0.21143262]
[1646620634194,0.03811,38128.0,38122.0,0.21143262]
[1646620634195,0.14,38123.0,38122.0,0.21143262]
[1646620634595,0.14,38123.0,38120.0,0.06637033]
[1646620634797,0.1,38125.0,38120.0,0.06549343]
[1646620635745,0.21312238,38127.0,38123.0,0.19809393]
[1646620635945,0.14,38124.0,38123.0,0.19809393]
[1646620636146,0.46704217,38131.0,38123.0,0.19809393]
[1646620636344,0.1,38131.0,38130.0,0.05516595]
[1646620636546,0.1,38131.0,38130.0,0.0473773]
[1646620636547,0.11287061,38131.0,38130.0,0.0473773]
[1646620636749,0.21287061,38131.0,38130.0,0.0473773]
[1646620637046,0.21287061,38131.0,38124.0,0.2356188]
[1646620637243,0.2,38131.0,38124.0,0.2356188]
[1646620637445,0.25,38131.0,38124.0,0.2356188]
[1646620637644,0.15,38131.0,38124.0,0.2356188]
[1646620637844,0.1,38130.0,38123.0,0.19809393]
[1646620638444,0.2,38130.0,38123.0,0.19809393]
[1646620638944,0.1,38130.0,38123.0,0.19809393]
[1646620639489,0.1,38130.0,38127.0,0.07307127]
[1646620639703,0.15,38130.0,38127.0,0.07307127]
[1646620640088,0.05,38130.0,38127.0,0.07307127]
[1646620640289,0.16311,38131.0,38127.0,0.07307127]
[1646620640588,0.26311,38131.0,38127.0,0.07307127]
[1646620641189,0.16311,38131.0,38127.0,0.07307127]
[1646620641389,0.16311,38131.0,38123.0,0.19809393]
[1646620641590,0.26311,38131.0,38123.0,0.19809393]
[1646620641790,0.16311,38131.0,38127.0,0.19994494]
[1646620641990,0.173615,38131.0,38127.0,0.19994494]
[1646620642292,0.173615,38131.0,38123.0,0.19809393]
[1646620642488,0.173615,38131.0,38128.0,0.05983639]
[1646620642690,0.010505,38131.0,38123.0,0.19809393]
[1646620643342,0.010505,38131.0,38124.0,0.172679]
[1646620643540,0.53015217,38132.0,38124.0,0.172679]
[1646620643741,0.53015217,38132.0,38126.0,0.2173497]
[1646620643944,0.16311,38132.0,38126.0,0.2173497]
[1646620644143,0.15,38132.0,38126.0,0.2173497]
[1646620644343,0.05,38132.0,38126.0,0.2173497]
[1646620644642,0.1,38133.0,38132.0,0.0647136]
[1646620644643,0.15,38133.0,38132.0,0.0647136]
[1646620644846,0.05,38133.0,38126.0,0.2173497]
[1646620645243,0.15,38134.0,38126.0,0.2173497]
[1646620645843,0.05,38134.0,38126.0,0.2173497]
[1646620646044,0.060504,38134.0,38126.0,0.2173497]
[1646620646242,0.15,38134.0,38126.0,0.2173497]
[1646620647296,0.15,38134.0,38133.0,0.05651906]
[1646620647498,0.15,38134.0,38126.0,0.2173497]
[1646620647895,0.15950244,38133.0,38126.0,0.2173497]
[1646620648298,0.25950244,38133.0,38124.0,0.02613]
[1646620648497,0.25950244,38133.0,38127.0,0.05727483]
[1646620649297,0.504029,38133.0,38123.0,0.19809393]
[1646620649497,0.01622157,38132.0,38121.0,0.25775139]
[1646620649697,0.1,38131.0,38121.0,0.25775139]
[1646620649897,0.1,38129.0,38121.0,0.25775139]
[1646620650201,0.1,38129.0,38118.0,0.02613]
[1646620650397,0.1,38129.0,38119.0,0.18818965]
[1646620650663,0.1,38129.0,38121.0,0.21286394]
[1646620651263,0.16033613,38127.0,38117.0,0.28910034]
[1646620651463,0.3,38126.0,38117.0,0.28910034]
[1646620651662,0.3,38126.0,38112.0,0.4696004]
[1646620651663,0.01311,38126.0,38112.0,0.4696004]
[1646620651865,0.1,38125.0,38112.0,0.4696004]
[1646620652062,0.31311,38124.0,38112.0,0.4696004]
[1646620652264,0.20630859,38118.0,38112.0,0.4696004]
[1646620652464,0.01711592,38117.0,38112.0,0.4696004]
[1646620652767,0.04381592,38117.0,38112.0,0.4696004]
[1646620652963,0.14,38113.0,38112.0,0.4696004]
[1646620653265,0.2167,38113.0,38112.0,0.4696004]
[1646620653463,0.18981,38113.0,38112.0,0.4696004]
[1646620653663,0.30542757,38113.0,38112.0,0.4696004]
[1646620653863,0.40542757,38113.0,38112.0,0.4696004]
[1646620654064,0.50542453,38113.0,38112.0,0.4696004]
[1646620654293,0.40542453,38113.0,38112.0,0.4696004]
[1646620655098,0.39231453,38113.0,38112.0,0.4696004]
[1646620655301,0.69231453,38113.0,38112.0,0.4696004]
[1646620655492,0.70542453,38113.0,38112.0,0.4696004]
[1646620655794,1.01849715,38113.0,38112.0,0.4696004]
[1646620655991,1.01849715,38113.0,38112.0,0.4646004]
[1646620656193,1.11849715,38113.0,38112.0,0.4646004]
[1646620656593,1.15,38112.0,38111.0,0.0023]
[1646620656794,2.02123011,38112.0,38110.0,0.001]
[1646620656993,0.74453011,38111.0,38110.0,0.001]
[1646620657194,1.38456553,38111.0,38110.0,0.001]
[1646620657395,1.07518475,38111.0,38110.0,0.001]
[1646620657695,1.07518475,38111.0,38110.0,0.00069668]
[1646620659340,0.16084966,38110.0,38109.0,0.00162702]
[1646620659540,0.70525701,38110.0,38109.0,0.00162702]
[1646620659740,0.6116651,38110.0,38109.0,0.00162702]
[1646620660243,0.6247751,38110.0,38109.0,0.00162702]
[1646620661041,0.6352871,38110.0,38109.0,0.00162702]
[1646620661244,0.47443744,38110.0,38109.0,0.00162702]
[1646620661441,0.46392544,38110.0,38109.0,0.00162702]
[1646620661642,0.45081544,38110.0,38109.0,0.00162702]
[1646620661898,0.45081544,38110.0,38108.0,0.002]
[1646620661899,0.01451905,38109.0,38108.0,0.001]
[1646620662097,0.1720364,38109.0,38108.0,0.001]
[1646620662299,0.37844449,38109.0,38108.0,0.001]
[1646620662495,0.37985632,38109.0,38108.0,0.001]
[1646620662698,0.47985632,38109.0,38108.0,0.001]